fUST/lending_fUST_20250628
["ID","MTS","AMOUNT","RATE_DAILY","PERIOD"]
[368277731,1751086239327,-460.0,0.00019178,2]
[368277732,1751086239337,-460.0,0.00019178,2]
[368277733,1751086239346,-460.0,0.00019178,2]
[368277734,1751086239355,-460.0,0.00019178,2]
[368277735,1751086239366,-215.47469188,0.00019178,2]
[368277736,1751086239375,-457.67110632,0.00019178,2]
[368277737,1751086239385,-460.0,0.00019178,2]
[368277738,1751086239394,-461.41876613,0.00019178,2]
[368277739,1751086239404,-460.0,0.00019178,2]
[368277740,1751086239414,-433.29709696,0.00019178,2]
[368277741,1751086239423,-460.0,0.00019178,2]
[368277742,1751086239432,-460.0,0.00019178,2]
[368277743,1751086239442,-460.0,0.00019178,2]
[368277744,1751086239451,-460.0,0.00019178,2]
[368277745,1751086239460,-460.0,0.00019178,2]
[368277746,1751086239470,-219.4867096,0.00019178,2]
[368277747,1751086239479,-460.0,0.00019178,2]
[368277748,1751086239489,-700.49,0.00019178,2]
[368277749,1751086239498,-460.0,0.00019178,2]
[368277750,1751086239507,-473.23329865,0.00019178,2]
[368277751,1751086239517,-460.0,0.00019178,2]
[368277752,1751086239526,-460.0,0.00019178,2]
[368277753,1751086239535,-460.0,0.00019178,2]
[368277754,1751086239545,-466.05199688,0.00019178,2]
[368277755,1751086239554,-460.0,0.00019178,2]
[368277756,1751086239563,-500.0,0.00019178,2]
[368277757,1751086239573,-460.0,0.00019178,2]
[368277758,1751086239582,-460.0,0.00019178,2]
[368277759,1751086239591,-460.0,0.00019178,2]
[368277760,1751086239601,-460.0,0.00019178,2]
[368277761,1751086239610,-460.0,0.00019178,2]
[368277762,1751086239619,-460.0,0.00019178,2]
[368277763,1751086239629,-462.07673129,0.00019178,2]
[368277764,1751086239638,-576.55,0.00019178,2]
[368277765,1751086239647,-2641.4,0.00019178,2]
[368277766,1751086239657,-460.0,0.00019178,2]
[368277767,1751086239667,-2007.05,0.00019178,2]
[368277768,1751086239676,-460.0,0.00019178,2]
[368277769,1751086239686,-460.0,0.00019178,2]
[368277770,1751086239695,-471.98705521,0.00019178,2]
[368277771,1751086239704,-342.54926142,0.00019178,2]
[368277772,1751086239714,-460.0,0.00019178,2]
[368277773,1751086239724,-287.06,0.00019178,2]
[368277774,1751086239733,-460.0,0.00019178,2]
[368277775,1751086239752,-460.0,0.00019178,2]
[368277776,1751086239763,-445.1821016,0.00019178,2]
[368277777,1751086239772,-460.0,0.00019178,2]
[368277778,1751086239782,-1932.62,0.00019178,2]
[368277779,1751086239792,-2347.35,0.00019178,2]
[368277780,1751086239801,-460.0,0.00019178,2]
[368277781,1751086239811,-460.0,0.00019178,2]
[368277782,1751086239823,-500.0,0.00019178,2]
[368277783,1751086239834,-463.09,0.00019178,2]
[368277784,1751086239844,-460.0,0.00019178,2]
[368277785,1751086239854,-460.0,0.00019178,2]
[368277786,1751086239864,-460.0,0.00019178,2]
[368277787,1751086239874,-460.0,0.00019178,2]
[368277788,1751086239883,-460.0,0.00019178,2]
[368277789,1751086239893,-708.02,0.00019178,2]
[368277790,1751086239903,-460.0,0.00019178,2]
[368277791,1751086239915,-460.0,0.00019178,2]
[368277792,1751086239925,-307.594826,0.00019178,2]
[368277793,1751086239935,-460.0,0.00019178,2]
[368277794,1751086239945,-460.0,0.00019178,2]
[368277795,1751086239955,-1025.71,0.00019178,2]
[368277796,1751086239965,-460.0,0.00019178,2]
[368277797,1751086239974,-460.0,0.00019178,2]
[368277798,1751086239984,-460.0,0.00019178,2]
[368277799,1751086239994,-460.0,0.00019178,2]
[368277800,1751086240004,-460.0,0.00019178,2]
[368277801,1751086240014,-460.0,0.00019178,2]
[368277802,1751086240024,-460.0,0.00019178,2]
[368277803,1751086240033,-460.0,0.00019178,2]
[368277804,1751086240043,-460.0,0.00019178,2]
[368277805,1751086240052,-2465.74,0.00019178,2]
[368277806,1751086240064,-460.0,0.00019178,2]
[368277807,1751086240074,-460.0,0.00019178,2]
[368277808,1751086240083,-460.0,0.00019178,2]
[368277809,1751086240093,-500.0,0.00019178,2]
[368277810,1751086240103,-500.0,0.00019178,2]
[368277811,1751086240113,-1611.12,0.00019178,2]
[368277812,1751086240123,-500.0,0.00019178,2]
[368277814,1751086240133,-500.0,0.00019178,2]
[368277816,1751086240143,-500.0,0.00019178,2]
[368277818,1751086240152,-920.64,0.00019178,2]
[368277820,1751086240162,-1992.32,0.00019178,2]
[368277821,1751086240172,-460.0,0.00019178,2]
[368277822,1751086240181,-796.91,0.00019178,2]
[368277823,1751086240191,-460.0,0.00019178,2]
[368277824,1751086240201,-506.10308369,0.00019178,2]
[368277825,1751086240211,-460.0,0.00019178,2]
[368277826,1751086240221,-460.0,0.00019178,2]
[368277827,1751086240231,-460.0,0.00019178,2]
[368277828,1751086240240,-460.0,0.00019178,2]
[368277829,1751086240250,-2784.35,0.00019178,2]
[368277830,1751086240260,-2047.57,0.00019178,2]
[368277831,1751086240270,-460.0,0.00019178,2]
[368277832,1751086240279,-3816.23,0.00019178,2]
[368277833,1751086240289,-460.0,0.00019178,2]
[368277834,1751086240298,-460.0,0.00019178,2]
[368277835,1751086240308,-460.0,0.00019178,2]
[368277836,1751086240318,-460.0,0.00019178,2]
[368277837,1751086240327,-4008.62,0.00019178,2]
[368277838,1751086240337,-460.0,0.00019178,2]
[368277839,1751086240347,-460.0,0.00019178,2]
[368277840,1751086240358,-696.39,0.00019178,2]
[368277841,1751086240368,-491.56,0.00019178,2]
[368277842,1751086240377,-857.49,0.00019178,2]
[368277843,1751086240387,-460.0,0.00019178,2]
[368277844,1751086240397,-460.0,0.00019178,2]
[368277845,1751086240407,-460.0,0.00019178,2]
[368277846,1751086240416,-1215.93,0.00019178,2]
[368277847,1751086240426,-460.0,0.00019178,2]
[368277848,1751086240436,-460.0,0.00019178,2]
[368277849,1751086240446,-460.0,0.00019178,2]
[368277851,1751086240455,-501.38,0.00019178,2]
[368277852,1751086240466,-460.0,0.00019178,2]
[368277853,1751086240476,-460.0,0.00019178,2]
[368277854,1751086240487,-460.0,0.00019178,2]
[368277855,1751086240496,-460.0,0.00019178,2]
[368277856,1751086240506,-679.94,0.00019178,2]
[368277857,1751086240515,-460.0,0.00019178,2]
[368277858,1751086240525,-460.0,0.00019178,2]
[368277859,1751086240535,-460.0,0.00019178,2]
[368277860,1751086240544,-1359.76,0.00019178,2]
[368277861,1751086240553,-559.41,0.00019178,2]
[368277862,1751086240563,-1789.44,0.00019178,2]
[368277863,1751086240572,-460.0,0.00019178,2]
[368277864,1751086240582,-460.0,0.00019178,2]
[368277865,1751086240591,-460.0,0.00019178,2]
[368277866,1751086240601,-460.0,0.00019178,2]
[368277867,1751086240611,-460.0,0.00019178,2]
[368277868,1751086240620,-460.0,0.00019178,2]
[368277869,1751086240630,-460.0,0.00019178,2]
[368277870,1751086240641,-460.0,0.00019178,2]
[368277871,1751086240652,-954.13,0.00019178,2]
[368277872,1751086240662,-1487.89,0.00019178,2]
[368277873,1751086240672,-460.0,0.00019178,2]
[368277874,1751086240681,-460.0,0.00019178,2]
[368277875,1751086240690,-460.0,0.00019178,2]
[368277876,1751086240699,-460.0,0.00019178,2]
[368277877,1751086240708,-460.0,0.00019178,2]
[368277878,1751086240718,-460.0,0.00019178,2]
[368277879,1751086240727,-1658.91,0.00019178,2]
[368277880,1751086240737,-460.0,0.00019178,2]
[368277881,1751086240747,-460.0,0.00019178,2]
[368277882,1751086240757,-922.12,0.00019178,2]
[368277883,1751086240766,-460.0,0.00019178,2]
[368277884,1751086240776,-707.77,0.00019178,2]
[368277885,1751086240785,-467.72305855,0.00019178,2]
[368277886,1751086240795,-460.0,0.00019178,2]
[368277887,1751086240810,-460.0,0.00019178,2]
[368277888,1751086240820,-460.0,0.00019178,2]
[368277889,1751086240829,-460.0,0.00019178,2]
[368277890,1751086240839,-460.0,0.00019178,2]
[368277891,1751086240849,-460.0,0.00019178,2]
[368277893,1751086240858,-308.065742,0.00019178,2]
[368277895,1751086240868,-182.32,0.00019442,3]
[368277896,1751086240877,-547.0,0.00019442,3]
[368277897,1751086240887,-500.0,0.00019451,2]
[368277898,1751086240897,-500.0,0.00019451,2]
[368277899,1751086240907,-394.8219935,0.00019452,2]
[368277900,1751086240921,-460.0,0.00019452,2]
[368277901,1751086240931,-460.0,0.00019452,2]
[368277902,1751086240941,-460.0,0.00019452,2]
[368277903,1751086240951,-510.75801331,0.00019452,2]
[368277904,1751086240962,-519.36,0.00019452,2]
[368277905,1751086240971,-460.0,0.00019452,2]
[368277906,1751086240981,-460.0,0.00019452,2]
[368277907,1751086240994,-460.0,0.00019452,2]
[368277908,1751086241005,-642.01,0.00019452,2]
[368277909,1751086241015,-460.0,0.00019452,2]
[368277910,1751086241024,-460.0,0.00019452,2]
[368277911,1751086241034,-460.0,0.00019452,2]
[368277912,1751086241043,-478.99,0.00019452,2]
[368277913,1751086241053,-460.0,0.00019452,2]
[368277914,1751086241062,-460.0,0.00019452,2]
[368277915,1751086241072,-460.0,0.00019452,2]
[368277916,1751086241082,-460.0,0.00019452,2]
[368277917,1751086241091,-460.0,0.00019452,2]
[368277918,1751086241100,-460.0,0.00019452,2]
[368277919,1751086241109,-425.25525534,0.00019452,2]
[368277920,1751086241119,-460.0,0.00019452,2]
[368277921,1751086241129,-534.57198213,0.00019452,2]
[368277922,1751086241138,-460.0,0.00019452,2]
[368277923,1751086241148,-460.0,0.00019452,2]
[368277924,1751086241158,-460.0,0.00019452,2]
[368277925,1751086241166,-481.09073413,0.00019452,2]
[368277926,1751086241176,-700.49,0.00019452,2]
[368277927,1751086241188,-460.0,0.00019452,2]
[368277928,1751086241198,-460.0,0.00019452,2]
[368277929,1751086241209,-460.0,0.00019452,2]
[368277930,1751086241219,-460.0,0.00019452,2]
[368277931,1751086241229,-460.0,0.00019452,2]
[368277932,1751086241239,-460.0,0.00019452,2]
[368277933,1751086241250,-460.0,0.00019452,2]
[368277934,1751086241260,-460.0,0.00019452,2]
[368277935,1751086241270,-460.0,0.00019452,2]
[368277936,1751086241280,-576.55,0.00019452,2]
[368277937,1751086241290,-2641.4,0.00019452,2]
[368277938,1751086241300,-460.0,0.00019452,2]
[368277939,1751086241310,-2007.05,0.00019452,2]
[368277940,1751086241319,-460.0,0.00019452,2]
[368277941,1751086241329,-360.0,0.00019452,2]
[368277942,1751086241338,-460.0,0.00019452,2]
[368277943,1751086241347,-500.0,0.00019452,2]
[368277944,1751086241357,-460.0,0.00019452,2]
[368277945,1751086241366,-460.0,0.00019452,2]
[368277946,1751086241376,-1932.62,0.00019452,2]
[368277947,1751086241386,-2347.35,0.00019452,2]
[368277948,1751086241395,-460.0,0.00019452,2]
[368277949,1751086241405,-463.09,0.00019452,2]
[368277950,1751086241416,-460.0,0.00019452,2]
[368277951,1751086241426,-460.0,0.00019452,2]
[368277952,1751086241437,-460.0,0.00019452,2]
[368277953,1751086241447,-460.0,0.00019452,2]
[368277954,1751086241456,-460.0,0.00019452,2]
[368277955,1751086241467,-708.02,0.00019452,2]
[368277956,1751086241476,-460.0,0.00019452,2]
[368277957,1751086241485,-460.0,0.00019452,2]
[368277958,1751086241495,-460.0,0.00019452,2]
[368277959,1751086241505,-460.0,0.00019452,2]
[368277960,1751086241514,-1025.71,0.00019452,2]
[368277961,1751086241523,-460.0,0.00019452,2]
[368277962,1751086241534,-460.0,0.00019452,2]
[368277963,1751086241543,-460.0,0.00019452,2]
[368277964,1751086241553,-460.0,0.00019452,2]
[368277965,1751086241562,-460.0,0.00019452,2]
[368277966,1751086241571,-460.0,0.00019452,2]
[368277967,1751086241580,-460.0,0.00019452,2]
[368277968,1751086241590,-460.0,0.00019452,2]
[368277969,1751086241599,-460.0,0.00019452,2]
[368277970,1751086241608,-2465.74,0.00019452,2]
[368277971,1751086241618,-460.0,0.00019452,2]
[368277972,1751086241627,-460.0,0.00019452,2]
[368277973,1751086241637,-1611.12,0.00019452,2]
[368277974,1751086241647,-920.64,0.00019452,2]
[368277975,1751086241657,-1992.32,0.00019452,2]
[368277976,1751086241667,-460.0,0.00019452,2]
[368277977,1751086241677,-796.91,0.00019452,2]
[368277978,1751086241687,-460.0,0.00019452,2]
[368277979,1751086241696,-460.0,0.00019452,2]
[368277980,1751086241705,-460.0,0.00019452,2]
[368277981,1751086241717,-460.0,0.00019452,2]
[368277982,1751086241727,-467.43720755,0.00019452,2]
[368277983,1751086241737,-2784.35,0.00019452,2]
[368277984,1751086241747,-2047.57,0.00019452,2]
[368277985,1751086241756,-460.0,0.00019452,2]
[368277986,1751086241766,-3816.23,0.00019452,2]
[368277987,1751086241775,-190.19182746,0.00019452,2]
[368277988,1751086241785,-460.0,0.00019452,2]
[368277989,1751086241795,-460.0,0.00019452,2]
[368277990,1751086241805,-460.0,0.00019452,2]
[368277991,1751086241814,-4008.62,0.00019452,2]
[368277992,1751086241823,-460.0,0.00019452,2]
[368277993,1751086241833,-460.0,0.00019452,2]
[368277994,1751086241842,-696.39,0.00019452,2]
[368277995,1751086241851,-491.56,0.00019452,2]
[368277996,1751086241861,-857.49,0.00019452,2]
[368277997,1751086241870,-460.0,0.00019452,2]
[368277998,1751086241880,-1215.93,0.00019452,2]
[368277999,1751086241889,-460.0,0.00019452,2]
[368278000,1751086241899,-460.0,0.00019452,2]
[368278001,1751086241909,-460.0,0.00019452,2]
[368278002,1751086241920,-501.38,0.00019452,2]
[368278003,1751086241930,-259.00043933,0.00019452,2]
[368278004,1751086241939,-441.29482588,0.00019452,2]
[368278005,1751086241949,-460.0,0.00019452,2]
[368278006,1751086241959,-460.0,0.00019452,2]
[368278007,1751086241968,-679.94,0.00019452,2]
[368278008,1751086241978,-460.0,0.00019452,2]
[368278009,1751086241987,-460.0,0.00019452,2]
[368278010,1751086241997,-460.0,0.00019452,2]
[368278011,1751086242007,-559.41,0.00019452,2]
[368278012,1751086242016,-1359.76,0.00019452,2]
[368278013,1751086242025,-1789.44,0.00019452,2]
[368278014,1751086242035,-460.0,0.00019452,2]
[368278015,1751086242046,-460.0,0.00019452,2]
[368278016,1751086242056,-460.0,0.00019452,2]
[368278017,1751086242065,-460.0,0.00019452,2]
[368278018,1751086242075,-460.0,0.00019452,2]
[368278019,1751086242084,-954.13,0.00019452,2]
[368278020,1751086242094,-1487.89,0.00019452,2]
[368278021,1751086242103,-460.0,0.00019452,2]
[368278022,1751086242112,-460.0,0.00019452,2]
[368278023,1751086242122,-460.0,0.00019452,2]
[368278024,1751086242131,-550.23712706,0.00019452,2]
[368278025,1751086242140,-1658.91,0.00019452,2]
[368278026,1751086242149,-460.0,0.00019452,2]
[368278027,1751086242159,-460.0,0.00019452,2]
[368278028,1751086242168,-922.12,0.00019452,2]
[368278029,1751086242177,-707.77,0.00019452,2]
[368278030,1751086242187,-460.0,0.00019452,2]
[368278031,1751086242196,-460.0,0.00019452,2]
[368278032,1751086242206,-460.0,0.00019452,2]
[368278033,1751086242215,-460.0,0.00019452,2]
[368278034,1751086242225,-460.0,0.00019452,2]
[368278035,1751086242234,-500.0,0.00019542,2]
[368278036,1751086242243,-500.0,0.00019725,2]
[368278037,1751086242396,-500.0,0.00019725,2]
[368278038,1751086242405,-460.0,0.00019726,2]
[368278039,1751086242415,-460.0,0.00019726,2]
[368278040,1751086242424,-519.36,0.00019726,2]
[368278041,1751086242433,-460.0,0.00019726,2]
[368278042,1751086242443,-460.0,0.00019726,2]
[368278043,1751086242452,-368.85962986,0.00019726,2]
[368278044,1751086242461,-642.01,0.00019726,2]
[368278045,1751086242470,-460.0,0.00019726,2]
[368278046,1751086242480,-460.0,0.00019726,2]
[368278047,1751086242489,-252.95527406,0.00019726,2]
[368278048,1751086242499,-460.0,0.00019726,2]
[368278049,1751086242508,-460.0,0.00019726,2]
[368278050,1751086242517,-460.0,0.00019726,2]
[368278051,1751086242527,-460.0,0.00019726,2]
[368278052,1751086242536,-460.0,0.00019726,2]
[368278053,1751086242545,-460.0,0.00019726,2]
[368278054,1751086242555,-460.0,0.00019726,2]
[368278055,1751086242564,-206.99051486,0.00019726,2]
[368278056,1751086242573,-700.49,0.00019726,2]
[368278057,1751086242583,-460.0,0.00019726,2]
[368278058,1751086242593,-460.0,0.00019726,2]
[368278059,1751086242602,-460.0,0.00019726,2]
[368278060,1751086242611,-460.0,0.00019726,2]
[368278061,1751086242620,-460.0,0.00019726,2]
[368278062,1751086242630,-460.0,0.00019726,2]
[368278063,1751086242639,-460.0,0.00019726,2]
[368278064,1751086242649,-460.0,0.00019726,2]
[368278065,1751086242660,-583.96932528,0.00019726,2]
[368278066,1751086242670,-576.55,0.00019726,2]
[368278067,1751086242679,-2641.4,0.00019726,2]
[368278068,1751086242688,-460.0,0.00019726,2]
[368278069,1751086242698,-460.0,0.00019726,2]
[368278070,1751086242707,-2007.05,0.00019726,2]
[368278071,1751086242721,-460.0,0.00019726,2]
[368278072,1751086242731,-460.0,0.00019726,2]
[368278073,1751086242740,-460.0,0.00019726,2]
[368278074,1751086242749,-1932.62,0.00019726,2]
[368278075,1751086242759,-2347.35,0.00019726,2]
[368278076,1751086242768,-460.0,0.00019726,2]
[368278077,1751086242777,-463.09,0.00019726,2]
[368278078,1751086242787,-460.0,0.00019726,2]
[368278079,1751086242796,-460.0,0.00019726,2]
[368278080,1751086242806,-460.0,0.00019726,2]
[368278081,1751086242815,-460.0,0.00019726,2]
[368278082,1751086242825,-708.02,0.00019726,2]
[368278083,1751086242835,-460.0,0.00019726,2]
[368278084,1751086242844,-460.0,0.00019726,2]
[368278085,1751086242855,-460.0,0.00019726,2]
[368278086,1751086242864,-507.82,0.00019726,2]
[368278087,1751086242874,-1025.71,0.00019726,2]
[368278088,1751086242885,-460.0,0.00019726,2]
[368278089,1751086242894,-460.0,0.00019726,2]
[368278090,1751086242904,-460.0,0.00019726,2]
[368278091,1751086242914,-460.0,0.00019726,2]
[368278092,1751086242927,-460.0,0.00019726,2]
[368278093,1751086242937,-460.0,0.00019726,2]
[368278094,1751086242946,-460.0,0.00019726,2]
[368278095,1751086242955,-460.0,0.00019726,2]
[368278096,1751086242965,-2465.74,0.00019726,2]
[368278097,1751086242975,-460.0,0.00019726,2]
[368278098,1751086242985,-460.0,0.00019726,2]
[368278099,1751086242996,-1611.12,0.00019726,2]
[368278100,1751086243006,-920.64,0.00019726,2]
[368278101,1751086243016,-1992.32,0.00019726,2]
[368278102,1751086243026,-460.0,0.00019726,2]
[368278104,1751086243035,-796.91,0.00019726,2]
[368278106,1751086243045,-460.0,0.00019726,2]
[368278107,1751086243054,-460.0,0.00019726,2]
[368278108,1751086243064,-460.0,0.00019726,2]
[368278109,1751086243073,-387.40038183,0.00019726,2]
[368278110,1751086243083,-2784.35,0.00019726,2]
[368278111,1751086243093,-2047.57,0.00019726,2]
[368278112,1751086243102,-460.0,0.00019726,2]
[368278113,1751086243112,-3816.23,0.00019726,2]
[368278114,1751086243121,-460.0,0.00019726,2]
[368278115,1751086243130,-460.0,0.00019726,2]
[368278116,1751086243140,-4008.62,0.00019726,2]
[368278117,1751086243149,-460.0,0.00019726,2]
[368278118,1751086243159,-460.0,0.00019726,2]
[368278119,1751086243168,-696.39,0.00019726,2]
[368278120,1751086243178,-491.56,0.00019726,2]
[368278121,1751086243187,-857.49,0.00019726,2]
[368278122,1751086243196,-460.0,0.00019726,2]
[368278123,1751086243206,-1215.93,0.00019726,2]
[368278124,1751086243215,-460.0,0.00019726,2]
[368278125,1751086243225,-460.0,0.00019726,2]
[368278126,1751086243234,-460.0,0.00019726,2]
[368278127,1751086243244,-501.38,0.00019726,2]
[368278128,1751086243253,-460.0,0.00019726,2]
[368278129,1751086243263,-679.94,0.00019726,2]
[368278130,1751086243272,-460.0,0.00019726,2]
[368278131,1751086243282,-460.0,0.00019726,2]
[368278132,1751086243291,-559.41,0.00019726,2]
[368278134,1751086243301,-1359.76,0.00019726,2]
[368278135,1751086243310,-1789.44,0.00019726,2]
[368278137,1751086243319,-460.0,0.00019726,2]
[368278138,1751086243329,-460.0,0.00019726,2]
[368278139,1751086243338,-460.0,0.00019726,2]
[368278140,1751086243347,-460.0,0.00019726,2]
[368278142,1751086243356,-954.13,0.00019726,2]
[368278143,1751086243365,-1487.89,0.00019726,2]
[368278145,1751086243375,-460.0,0.00019726,2]
[368278146,1751086243384,-460.0,0.00019726,2]
[368278147,1751086243394,-1658.91,0.00019726,2]
[368278148,1751086243403,-460.0,0.00019726,2]
[368278150,1751086243413,-460.0,0.00019726,2]
[368278151,1751086243422,-922.12,0.00019726,2]
[368278153,1751086243432,-707.77,0.00019726,2]
[368278154,1751086243441,-460.0,0.00019726,2]
[368278155,1751086243451,-460.0,0.00019726,2]
[368278156,1751086243460,-460.0,0.00019726,2]
[368278157,1751086243469,-390.0,0.00019726,2]
[368278158,1751086243479,-443.30882593,0.00019779,2]
[368278159,1751086243488,-500.0,0.00019796,2]
[368278160,1751086243498,-500.0,0.00019796,2]
[368278161,1751086243507,-487.1023781,0.00019804,2]
[368278162,1751086243516,-500.0,0.00019804,2]
[368278163,1751086243526,-503.40974568,0.00019808,2]
[368278164,1751086243535,-264.0,0.00019849,2]
[368278165,1751086243545,-8309.38356545,0.000199,2]
[368278166,1751086243554,-500.0,0.00019999,2]
[368278167,1751086243564,-500.0,0.00019999,2]
[368278168,1751086243574,-500.0,0.00019999,2]
[368278169,1751086243583,-460.0,0.0002,2]
[368278170,1751086243592,-460.0,0.0002,2]
[368278171,1751086243601,-6894.0,0.0002,2]
[368278172,1751086243611,-519.36,0.0002,2]
[368278173,1751086243620,-460.0,0.0002,2]
[368278174,1751086243629,-460.0,0.0002,2]
[368278175,1751086243639,-642.01,0.0002,2]
[368278176,1751086243648,-460.0,0.0002,2]
[368278177,1751086243659,-460.0,0.0002,2]
[368278178,1751086243668,-194.20416739,0.0002,2]
[368278179,1751086243679,-460.0,0.0002,2]
[368278180,1751086243688,-460.0,0.0002,2]
[368278181,1751086243698,-460.0,0.0002,2]
[368278182,1751086243707,-534.35,0.0002,2]
[368278183,1751086243717,-196.29499146,0.0002,2]
[368278184,1751086243726,-700.49,0.0002,2]
[368278185,1751086243736,-158.48,0.0002,2]
[368278186,1751086243745,-500.0,0.0002,2]
[368278187,1751086243755,-460.0,0.0002,2]
[368278188,1751086243765,-460.0,0.0002,2]
[368278189,1751086243774,-460.0,0.0002,2]
[368278190,1751086243784,-460.0,0.0002,2]
[368278191,1751086243794,-460.0,0.0002,2]
[368278192,1751086243803,-460.0,0.0002,2]
[368278193,1751086243812,-576.55,0.0002,2]
[368278194,1751086243822,-2641.4,0.0002,2]
[368278195,1751086243831,-460.0,0.0002,2]
[368278196,1751086243841,-460.0,0.0002,2]
[368278197,1751086243850,-2007.05,0.0002,2]
[368278198,1751086243860,-460.0,0.0002,2]
[368278199,1751086243869,-460.0,0.0002,2]
[368278200,1751086243879,-460.0,0.0002,2]
[368278201,1751086243888,-1932.62,0.0002,2]
[368278202,1751086243898,-2347.35,0.0002,2]
[368278203,1751086243907,-460.0,0.0002,2]
[368278204,1751086243917,-463.09,0.0002,2]
[368278205,1751086243926,-460.0,0.0002,2]
[368278206,1751086243939,-460.0,0.0002,2]
[368278207,1751086243948,-305.77632878,0.0002,2]
[368278208,1751086243958,-460.0,0.0002,2]
[368278209,1751086243967,-460.0,0.0002,2]
[368278210,1751086243977,-471.91,0.0002,2]
[368278211,1751086243986,-708.02,0.0002,2]
[368278212,1751086243995,-460.0,0.0002,2]
[368278213,1751086244005,-1025.71,0.0002,2]
[368278214,1751086244014,-460.0,0.0002,2]
[368278215,1751086244023,-460.0,0.0002,2]
[368278216,1751086244033,-460.0,0.0002,2]
[368278217,1751086244043,-460.0,0.0002,2]
[368278218,1751086244053,-460.0,0.0002,2]
[368278219,1751086244062,-460.0,0.0002,2]
[368278220,1751086244071,-460.0,0.0002,2]
[368278221,1751086244081,-460.0,0.0002,2]
[368278222,1751086244091,-2465.74,0.0002,2]
[368278223,1751086244100,-460.0,0.0002,2]
[368278224,1751086244109,-415.743074,0.0002,2]
[368278225,1751086244118,-1611.12,0.0002,2]
[368278226,1751086244128,-920.64,0.0002,2]
[368278227,1751086244137,-1992.32,0.0002,2]
[368278228,1751086244146,-500.0,0.0002,2]
[368278229,1751086244156,-796.91,0.0002,2]
[368278230,1751086244165,-460.0,0.0002,2]
[368278231,1751086244175,-460.0,0.0002,2]
[368278232,1751086244185,-460.0,0.0002,2]
[368278233,1751086244194,-2784.35,0.0002,2]
[368278234,1751086244203,-2047.57,0.0002,2]
[368278235,1751086244213,-460.0,0.0002,2]
[368278236,1751086244223,-3816.23,0.0002,2]
[368278237,1751086244232,-460.0,0.0002,2]
[368278238,1751086244242,-460.0,0.0002,2]
[368278239,1751086244252,-4008.62,0.0002,2]
[368278240,1751086244261,-460.0,0.0002,2]
[368278241,1751086244271,-696.39,0.0002,2]
[368278242,1751086244280,-491.56,0.0002,2]
[368278243,1751086244290,-857.49,0.0002,2]
[368278244,1751086244299,-460.0,0.0002,2]
[368278245,1751086244309,-1215.93,0.0002,2]